[Event "Titled Tuesday Blitz May 10 Late 2022"]
[White "Jegorovas, Aleksandras"]
[Black "Stremavicius, Titas"]
[WhiteFideId "12801950"]
[BlackFideId "12804444"]
[WhiteElo "2247"]
[BlackElo "2404"]
[Result "0-1"]
[Round "01"]
[TimeControl "180+1"]
[Date "2022.05.10"]
[WhiteClock "0:00:01"]
[BlackClock "0:01:12"]

1. Nf3 {[%clk 0:02:55]}  f5 {[%clk 0:02:58]} 2. g3 {[%clk 0:02:54]}  Nf6 {[%clk 0:02:58]} 3. Bg2 {[%clk 0:02:54]}  e6 {[%clk 0:02:57]} 4. O-O {[%clk 0:02:51]}  Be7 {[%clk 0:02:58]} 5. c4 {[%clk 0:02:49]}  d5 {[%clk 0:02:56]} 6. d4 {[%clk 0:02:49]}  Ne4 {[%clk 0:02:56]} 7. b3 {[%clk 0:02:43]}  Nc6 {[%clk 0:02:52]} 8. Ba3 {[%clk 0:02:39]}  Bf6 {[%clk 0:02:50]} 9. e3 {[%clk 0:02:36]}  h5 {[%clk 0:02:49]} 10. Nbd2 {[%clk 0:02:33]}  h4 {[%clk 0:02:49]} 11. Rc1 {[%clk 0:02:17]}  a5 {[%clk 0:02:47]} 12. cxd5 {[%clk 0:02:14]}  exd5 {[%clk 0:02:47]} 13. Nxe4 {[%clk 0:01:43]}  fxe4 {[%clk 0:02:30]} 14. Ne5 {[%clk 0:01:35]}  Nxe5 {[%clk 0:02:28]} 15. dxe5 {[%clk 0:01:35]}  Bxe5 {[%clk 0:02:28]} 16. f3 {[%clk 0:01:35]}  hxg3 {[%clk 0:02:10]} 17. fxe4 {[%clk 0:01:34]}  Qh4 {[%clk 0:02:10]} 18. h3 {[%clk 0:00:59]}  Be6 {[%clk 0:02:02]} 19. exd5 {[%clk 0:00:19]}  Bxh3 {[%clk 0:02:01]} 20. d6 {[%clk 0:00:13]}  Bxg2 {[%clk 0:01:18]} 21. d7+ {[%clk 0:00:13]}  Kd8 {[%clk 0:01:18]} 22. Kxg2 {[%clk 0:00:10]}  Qh3+ {[%clk 0:01:17]} 23. Kf3 {[%clk 0:00:09]}  g2+ {[%clk 0:01:17]} 24. Ke4 {[%clk 0:00:08]}  gxf1=Q {[%clk 0:01:16]} 25. Be7+ {[%clk 0:00:04]}  Kxe7 {[%clk 0:01:15]} 26. d8=Q+ {[%clk 0:00:04]}  Raxd8 {[%clk 0:01:14]} 27. Rxc7+ {[%clk 0:00:03]}  Bxc7 {[%clk 0:01:13]} 28. Qd7+ {[%clk 0:00:01]}  Rxd7 {[%clk 0:01:12]} 0-1


[Site "https://www.chess.com"]

[Event "Titled Tuesday Blitz May 10 Late 2022"]
[White "Jobava, Baadur"]
[Black "Vusatiuk, Vladimir"]
[WhiteFideId "13601520"]
[BlackFideId "14118610"]
[WhiteElo "2617"]
[BlackElo "2157"]
[Result "1-0"]
[Round "01"]
[TimeControl "180+1"]
[Date "2022.05.10"]
[WhiteClock "0:01:27"]
[BlackClock "0:00:02"]

1. b3 {[%clk 0:02:53]}  d5 {[%clk 0:02:53]} 2. Bb2 {[%clk 0:02:53]}  c5 {[%clk 0:02:41]} 3. g3 {[%clk 0:02:52]}  Nc6 {[%clk 0:02:42]} 4. Bg2 {[%clk 0:02:52]}  Nf6 {[%clk 0:02:30]} 5. c4 {[%clk 0:02:52]}  e6 {[%clk 0:02:29]} 6. Nf3 {[%clk 0:02:51]}  Be7 {[%clk 0:02:29]} 7. cxd5 {[%clk 0:02:51]}  exd5 {[%clk 0:02:29]} 8. O-O {[%clk 0:02:52]}  O-O {[%clk 0:02:29]} 9. d4 {[%clk 0:02:52]}  Bg4 {[%clk 0:02:10]} 10. Nbd2 {[%clk 0:02:48]}  cxd4 {[%clk 0:01:58]} 11. Nxd4 {[%clk 0:02:49]}  Re8 {[%clk 0:01:51]} 12. h3 {[%clk 0:02:44]}  Bh5 {[%clk 0:01:46]} 13. Nf5 {[%clk 0:02:38]}  Bc5 {[%clk 0:01:42]} 14. g4 {[%clk 0:02:37]}  Bg6 {[%clk 0:01:42]} 15. Rc1 {[%clk 0:02:36]}  Bb6 {[%clk 0:01:36]} 16. Nxg7 {[%clk 0:02:36]}  Kxg7 {[%clk 0:01:33]} 17. g5 {[%clk 0:02:37]}  d4 {[%clk 0:01:34]} 18. gxf6+ {[%clk 0:02:37]}  Qxf6 {[%clk 0:01:34]} 19. Nc4 {[%clk 0:02:35]}  Rad8 {[%clk 0:01:12]} 20. Nxb6 {[%clk 0:02:35]}  axb6 {[%clk 0:01:13]} 21. e3 {[%clk 0:02:34]}  Qg5 {[%clk 0:01:05]} 22. Qg4 {[%clk 0:02:31]}  Qxg4 {[%clk 0:01:01]} 23. hxg4 {[%clk 0:02:32]}  Be4 {[%clk 0:01:02]} 24. Rfd1 {[%clk 0:02:23]}  Kg6 {[%clk 0:00:53]} 25. f3 {[%clk 0:02:20]}  Bd5 {[%clk 0:00:45]} 26. Bxd4 {[%clk 0:02:10]}  Nxd4 {[%clk 0:00:43]} 27. Rxd4 {[%clk 0:02:11]}  Bc6 {[%clk 0:00:36]} 28. Kf2 {[%clk 0:02:05]}  Rxd4 {[%clk 0:00:32]} 29. exd4 {[%clk 0:02:06]}  b5 {[%clk 0:00:33]} 30. Bf1 {[%clk 0:02:00]}  Ra8 {[%clk 0:00:28]} 31. Rc2 {[%clk 0:01:59]}  Kg5 {[%clk 0:00:27]} 32. Bd3 {[%clk 0:01:55]}  Kf4 {[%clk 0:00:22]} 33. Be2 {[%clk 0:01:34]}  f5 {[%clk 0:00:12]} 34. gxf5 {[%clk 0:01:33]}  Kxf5 {[%clk 0:00:12]} 35. Rc5+ {[%clk 0:01:33]}  Kg6 {[%clk 0:00:10]} 36. Bd3+ {[%clk 0:01:32]}  Kg7 {[%clk 0:00:09]} 37. d5 {[%clk 0:01:28]}  Rxa2+ {[%clk 0:00:08]} 38. Ke3 {[%clk 0:01:29]}  Be8 {[%clk 0:00:08]} 39. Rc7+ {[%clk 0:01:29]}  Kf6 {[%clk 0:00:05]} 40. Kd4 {[%clk 0:01:28]}  h5 {[%clk 0:00:04]} 41. Rxb7 {[%clk 0:01:28]}  Rf2 {[%clk 0:00:04]} 42. Rb6+ {[%clk 0:01:26]}  Ke7 {[%clk 0:00:03]} 43. Be4 {[%clk 0:01:24]}  Rb2 {[%clk 0:00:03]} 44. Ke5 {[%clk 0:01:25]}  Rxb3 {[%clk 0:00:03]} 45. d6+ {[%clk 0:01:25]}  Kd8 {[%clk 0:00:02]} 46. Rb8+ {[%clk 0:01:25]}  Kd7 {[%clk 0:00:02]} 47. Bf5+ {[%clk 0:01:25]}  Kc6 {[%clk 0:00:02]} 48. Rc8+ {[%clk 0:01:25]}  Kb7 {[%clk 0:00:02]} 49. Rxe8 {[%clk 0:01:26]}  Re3+ {[%clk 0:00:02]} 50. Be4+ {[%clk 0:01:27]} 1-0


[Site "https://www.chess.com"]

[Event "Titled Tuesday Blitz May 10 Late 2022"]
[White "Kaganskiy, Gleb"]
[Black "Suder, Jakub"]
[WhiteFideId "4132025"]
[BlackFideId "1195310"]
[WhiteElo "2165"]
[BlackElo "2058"]
[Result "0-1"]
[Round "01"]
[TimeControl "180+1"]
[Date "2022.05.11"]
[WhiteClock "0:00:53"]
[BlackClock "0:01:41"]

1. e4 {[%clk 0:02:59]}  c5 {[%clk 0:02:59]} 2. c3 {[%clk 0:02:58]}  Nf6 {[%clk 0:02:56]} 3. e5 {[%clk 0:02:58]}  Nd5 {[%clk 0:02:57]} 4. d4 {[%clk 0:02:58]}  cxd4 {[%clk 0:02:55]} 5. cxd4 {[%clk 0:02:58]}  e6 {[%clk 0:02:56]} 6. Nf3 {[%clk 0:02:58]}  d6 {[%clk 0:02:56]} 7. Bc4 {[%clk 0:02:55]}  Nb6 {[%clk 0:02:56]} 8. Bd3 {[%clk 0:02:54]}  Bd7 {[%clk 0:02:56]} 9. O-O {[%clk 0:02:53]}  Bc6 {[%clk 0:02:55]} 10. Qe2 {[%clk 0:02:49]}  N8d7 {[%clk 0:02:54]} 11. Nc3 {[%clk 0:02:45]}  Rc8 {[%clk 0:02:53]} 12. Bf4 {[%clk 0:02:44]}  dxe5 {[%clk 0:02:51]} 13. dxe5 {[%clk 0:02:45]}  Nc5 {[%clk 0:02:43]} 14. Bc2 {[%clk 0:02:33]}  Nd5 {[%clk 0:02:37]} 15. Nxd5 {[%clk 0:02:17]}  Bxd5 {[%clk 0:02:37]} 16. Rfd1 {[%clk 0:02:11]}  Be7 {[%clk 0:02:33]} 17. Rac1 {[%clk 0:02:05]}  O-O {[%clk 0:02:32]} 18. b4 {[%clk 0:01:33]}  Nd7 {[%clk 0:02:15]} 19. a3 {[%clk 0:01:33]}  Rc4 {[%clk 0:02:02]} 20. Bg3 {[%clk 0:01:26]}  Qc8 {[%clk 0:01:53]} 21. Qd3 {[%clk 0:01:06]}  g6 {[%clk 0:01:51]} 22. Nd2 {[%clk 0:01:03]}  Rc3 {[%clk 0:01:48]} 23. Bb1 {[%clk 0:00:53]}  Rxc1 {[%clk 0:01:44]} 24. Rxc1 {[%clk 0:00:53]}  Qxc1+ {[%clk 0:01:44]} 25. Nf1 {[%clk 0:00:53]}  Bc4 {[%clk 0:01:41]} 26. Qxg6+ {[%clk 0:00:53]}  hxg6 {[%clk 0:01:41]} 0-1


[Site "https://www.chess.com"]

[Event "Titled Tuesday Blitz May 10 Late 2022"]
[White "Kalajzic, Ivan"]
[Black "Demchenko, Anton"]
[WhiteFideId "14506378"]
[BlackFideId "4160258"]
[WhiteElo "2163"]
[BlackElo "2539"]
[Result "0-1"]
[Round "01"]
[TimeControl "180+1"]
[Date "2022.05.11"]
[WhiteClock "0:00:01"]
[BlackClock "0:00:07"]

1. d4 {[%clk 0:02:59]}  Nf6 {[%clk 0:02:59]} 2. Nc3 {[%clk 0:02:59]}  d5 {[%clk 0:02:59]} 3. Bg5 {[%clk 0:02:59]}  h6 {[%clk 0:02:57]} 4. Bh4 {[%clk 0:02:58]}  c6 {[%clk 0:02:54]} 5. e3 {[%clk 0:02:58]}  Qb6 {[%clk 0:02:51]} 6. Rb1 {[%clk 0:02:57]}  Bf5 {[%clk 0:02:41]} 7. Bd3 {[%clk 0:02:56]}  Bxd3 {[%clk 0:02:40]} 8. cxd3 {[%clk 0:02:54]}  Nbd7 {[%clk 0:02:40]} 9. Nge2 {[%clk 0:02:54]}  e6 {[%clk 0:02:40]} 10. O-O {[%clk 0:02:51]}  Be7 {[%clk 0:02:37]} 11. b4 {[%clk 0:02:50]}  O-O {[%clk 0:02:34]} 12. b5 {[%clk 0:02:50]}  c5 {[%clk 0:02:32]} 13. Na4 {[%clk 0:02:49]}  Qd8 {[%clk 0:02:31]} 14. dxc5 {[%clk 0:02:49]}  Nxc5 {[%clk 0:02:32]} 15. Nxc5 {[%clk 0:02:47]}  Bxc5 {[%clk 0:02:33]} 16. d4 {[%clk 0:02:13]}  Be7 {[%clk 0:02:33]} 17. Bxf6 {[%clk 0:02:10]}  Bxf6 {[%clk 0:02:32]} 18. Nf4 {[%clk 0:02:11]}  Qa5 {[%clk 0:02:30]} 19. Qb3 {[%clk 0:02:09]}  Rfc8 {[%clk 0:02:28]} 20. Rfc1 {[%clk 0:02:08]}  Be7 {[%clk 0:02:27]} 21. Nd3 {[%clk 0:02:05]}  Ba3 {[%clk 0:02:22]} 22. Rc2 {[%clk 0:01:59]}  Rxc2 {[%clk 0:02:03]} 23. Qxc2 {[%clk 0:01:58]}  Qd8 {[%clk 0:02:04]} 24. Qb3 {[%clk 0:01:55]}  Qe7 {[%clk 0:02:01]} 25. g3 {[%clk 0:01:46]}  Rc8 {[%clk 0:01:59]} 26. Kg2 {[%clk 0:01:45]}  g6 {[%clk 0:01:53]} 27. h4 {[%clk 0:01:44]}  Kg7 {[%clk 0:01:51]} 28. Rd1 {[%clk 0:01:40]}  f6 {[%clk 0:01:41]} 29. Rd2 {[%clk 0:01:39]}  g5 {[%clk 0:01:32]} 30. hxg5 {[%clk 0:01:38]}  hxg5 {[%clk 0:01:32]} 31. Rc2 {[%clk 0:01:39]}  Rxc2 {[%clk 0:01:31]} 32. Qxc2 {[%clk 0:01:40]}  Bd6 {[%clk 0:01:27]} 33. Qc8 {[%clk 0:01:37]}  b6 {[%clk 0:01:25]} 34. f4 {[%clk 0:01:21]}  gxf4 {[%clk 0:00:49]} 35. gxf4 {[%clk 0:01:22]}  Qf7 {[%clk 0:00:49]} 36. Kf2 {[%clk 0:01:10]}  Kg6 {[%clk 0:00:39]} 37. Ne1 {[%clk 0:01:04]}  e5 {[%clk 0:00:26]} 38. Qg4+ {[%clk 0:00:59]}  Kh7 {[%clk 0:00:26]} 39. Nf3 {[%clk 0:00:59]}  exf4 {[%clk 0:00:23]} 40. exf4 {[%clk 0:00:44]}  Qe8 {[%clk 0:00:10]} 41. Qf5+ {[%clk 0:00:39]}  Kg7 {[%clk 0:00:10]} 42. Nh4 {[%clk 0:00:32]}  Bc7 {[%clk 0:00:07]} 43. Qxd5 {[%clk 0:00:29]}  Bxf4 {[%clk 0:00:06]} 44. Nf5+ {[%clk 0:00:29]}  Kg6 {[%clk 0:00:06]} 45. Nh4+ {[%clk 0:00:25]}  Kg7 {[%clk 0:00:06]} 46. Qb7+ {[%clk 0:00:19]}  Kh6 {[%clk 0:00:06]} 47. Ng2 {[%clk 0:00:11]}  Bg5 {[%clk 0:00:05]} 48. Qf3 {[%clk 0:00:09]}  Qxb5 {[%clk 0:00:04]} 49. Qh3+ {[%clk 0:00:06]}  Kg6 {[%clk 0:00:05]} 50. Qh8 {[%clk 0:00:03]}  Qb2+ {[%clk 0:00:05]} 51. Kg1 {[%clk 0:00:03]}  Qa1+ {[%clk 0:00:05]} 52. Kh2 {[%clk 0:00:02]}  Qxd4 {[%clk 0:00:06]} 53. Qg8+ {[%clk 0:00:02]}  Kf5 {[%clk 0:00:06]} 54. Qc8+ {[%clk 0:00:02]}  Ke5 {[%clk 0:00:07]} 55. Qe8+ {[%clk 0:00:01]}  Kd5 {[%clk 0:00:06]} 56. Qd7+ {[%clk 0:00:01]}  Kc5 {[%clk 0:00:07]} 0-1


[Site "https://www.chess.com"]

[Event "Titled Tuesday Blitz May 10 Late 2022"]
[White "Kanyamarala, Trisha"]
[Black "Janaszak, Dawid"]
[WhiteFideId "45004722"]
[BlackFideId "1119206"]
[WhiteElo "2134"]
[BlackElo "2199"]
[Result "0-1"]
[Round "01"]
[TimeControl "180+1"]
[Date "2022.05.11"]
[WhiteClock "0:00:02"]
[BlackClock "0:01:09"]

1. b3 {[%clk 0:02:51]}  c5 {[%clk 0:02:58]} 2. Bb2 {[%clk 0:02:50]}  d6 {[%clk 0:02:59]} 3. g3 {[%clk 0:02:48]}  e5 {[%clk 0:02:59]} 4. Bg2 {[%clk 0:02:48]}  Nf6 {[%clk 0:02:59]} 5. d3 {[%clk 0:02:45]}  Be7 {[%clk 0:02:59]} 6. Nf3 {[%clk 0:02:46]}  O-O {[%clk 0:02:59]} 7. O-O {[%clk 0:02:46]}  Nc6 {[%clk 0:03:00]} 8. c4 {[%clk 0:02:45]}  Bf5 {[%clk 0:02:57]} 9. Nc3 {[%clk 0:02:44]}  Qd7 {[%clk 0:02:57]} 10. Re1 {[%clk 0:02:41]}  Bh3 {[%clk 0:02:57]} 11. Bh1 {[%clk 0:02:41]}  Qg4 {[%clk 0:02:57]} 12. a3 {[%clk 0:02:37]}  Qh5 {[%clk 0:02:56]} 13. Nd5 {[%clk 0:02:33]}  Ng4 {[%clk 0:02:55]} 14. b4 {[%clk 0:02:28]}  Rae8 {[%clk 0:02:46]} 15. b5 {[%clk 0:02:04]}  Nd8 {[%clk 0:02:46]} 16. Nc7 {[%clk 0:02:01]}  Ne6 {[%clk 0:02:40]} 17. Nxe8 {[%clk 0:01:57]}  Rxe8 {[%clk 0:02:41]} 18. e3 {[%clk 0:01:50]}  f5 {[%clk 0:02:33]} 19. Nd2 {[%clk 0:01:13]}  Bf6 {[%clk 0:02:09]} 20. f3 {[%clk 0:01:11]}  Nxh2 {[%clk 0:02:00]} 21. Kxh2 {[%clk 0:01:00]}  f4 {[%clk 0:02:01]} 22. Kg1 {[%clk 0:00:31]}  fxg3 {[%clk 0:01:58]} 23. Qe2 {[%clk 0:00:29]}  Ng5 {[%clk 0:01:53]} 24. Ne4 {[%clk 0:00:22]}  g2 {[%clk 0:01:26]} 25. Bxg2 {[%clk 0:00:12]}  Bxg2 {[%clk 0:01:26]} 26. Nxg5 {[%clk 0:00:12]}  Qh1+ {[%clk 0:01:17]} 27. Kf2 {[%clk 0:00:12]}  Qh2 {[%clk 0:01:17]} 28. Rg1 {[%clk 0:00:07]}  Bh3+ {[%clk 0:01:15]} 29. Ke1 {[%clk 0:00:06]}  Qxg1+ {[%clk 0:01:16]} 30. Kd2 {[%clk 0:00:06]}  Qxg5 {[%clk 0:01:16]} 31. Rh1 {[%clk 0:00:06]}  Bf5 {[%clk 0:01:14]} 32. Qh2 {[%clk 0:00:06]}  Bg6 {[%clk 0:01:10]} 33. Rg1 {[%clk 0:00:06]}  Qf5 {[%clk 0:01:10]} 34. e4 {[%clk 0:00:06]}  Qf4+ {[%clk 0:01:09]} 35. Qxf4 {[%clk 0:00:07]}  exf4 {[%clk 0:01:10]} 36. Bxf6 {[%clk 0:00:07]}  gxf6 {[%clk 0:01:11]} 37. Kc3 {[%clk 0:00:07]}  Kg7 {[%clk 0:01:10]} 38. d4 {[%clk 0:00:08]}  b6 {[%clk 0:01:10]} 39. a4 {[%clk 0:00:08]}  h5 {[%clk 0:01:10]} 40. Rd1 {[%clk 0:00:07]}  h4 {[%clk 0:01:10]} 41. dxc5 {[%clk 0:00:07]}  dxc5 {[%clk 0:01:10]} 42. Rd7+ {[%clk 0:00:07]}  Kg8 {[%clk 0:01:10]} 43. Rxa7 {[%clk 0:00:07]}  h3 {[%clk 0:01:09]} 44. Rd7 {[%clk 0:00:02]}  Bh5 {[%clk 0:01:09]} 45. Rd1 {[%clk 0:00:02]}  Bxf3 {[%clk 0:01:09]} 46. Rg1+ {[%clk 0:00:02]}  Bg2 {[%clk 0:01:09]} 47. Kd2 {[%clk 0:00:01]}  f3 {[%clk 0:01:09]} 48. a5 {[%clk 0:00:02]}  bxa5 {[%clk 0:01:09]} 49. Ke3 {[%clk 0:00:02]}  h2 {[%clk 0:01:09]} 0-1


[Site "https://www.chess.com"]

[Event "Titled Tuesday Blitz May 10 Late 2022"]
[White "Khumalo, Keith"]
[Black "Kujawski, Adam"]
[WhiteFideId "14319470"]
[BlackFideId "1100920"]
[WhiteElo "2057"]
[BlackElo "1982"]
[Result "1-0"]
[Round "01"]
[TimeControl "180+1"]
[Date "2022.05.11"]
[WhiteClock "0:01:25"]
[BlackClock "0:00:01"]

1. Nf3 {[%clk 0:02:59]}  d5 {[%clk 0:02:56]} 2. e3 {[%clk 0:02:59]}  Nf6 {[%clk 0:02:55]} 3. b3 {[%clk 0:02:59]}  c5 {[%clk 0:02:55]} 4. Bb2 {[%clk 0:03:00]}  a6 {[%clk 0:02:55]} 5. c4 {[%clk 0:02:59]}  Nc6 {[%clk 0:02:50]} 6. cxd5 {[%clk 0:02:59]}  Nxd5 {[%clk 0:02:49]} 7. Be2 {[%clk 0:03:00]}  f6 {[%clk 0:02:45]} 8. d4 {[%clk 0:02:56]}  cxd4 {[%clk 0:02:44]} 9. Nxd4 {[%clk 0:02:49]}  e5 {[%clk 0:02:43]} 10. Nxc6 {[%clk 0:02:48]}  bxc6 {[%clk 0:02:44]} 11. O-O {[%clk 0:02:49]}  Be6 {[%clk 0:02:38]} 12. Nd2 {[%clk 0:02:48]}  Be7 {[%clk 0:02:37]} 13. Rc1 {[%clk 0:02:49]}  Nb4 {[%clk 0:02:12]} 14. a3 {[%clk 0:02:47]}  Nd3 {[%clk 0:02:11]} 15. Bxd3 {[%clk 0:02:35]}  Qxd3 {[%clk 0:02:12]} 16. Rxc6 {[%clk 0:02:34]}  Bd5 {[%clk 0:01:27]} 17. Rc3 {[%clk 0:02:18]}  Qg6 {[%clk 0:01:18]} 18. e4 {[%clk 0:02:18]}  Bxe4 {[%clk 0:01:07]} 19. Rg3 {[%clk 0:02:15]}  Qf5 {[%clk 0:01:06]} 20. Nxe4 {[%clk 0:02:15]}  Qxe4 {[%clk 0:01:06]} 21. Rxg7 {[%clk 0:02:16]}  Kf8 {[%clk 0:00:30]} 22. Rg4 {[%clk 0:02:15]}  Qf5 {[%clk 0:00:29]} 23. h3 {[%clk 0:02:06]}  Rd8 {[%clk 0:00:27]} 24. Qe2 {[%clk 0:01:56]}  h5 {[%clk 0:00:26]} 25. Rg3 {[%clk 0:01:43]}  Rd6 {[%clk 0:00:25]} 26. Rf3 {[%clk 0:01:42]}  Qg6 {[%clk 0:00:20]} 27. Qxe5 {[%clk 0:01:40]}  Rg8 {[%clk 0:00:17]} 28. g3 {[%clk 0:01:39]}  Rd2 {[%clk 0:00:09]} 29. Bc3 {[%clk 0:01:37]}  Rd3 {[%clk 0:00:08]} 30. Qe2 {[%clk 0:01:32]}  Rxf3 {[%clk 0:00:06]} 31. Qxf3 {[%clk 0:01:33]}  Kf7 {[%clk 0:00:05]} 32. Re1 {[%clk 0:01:32]}  Rd8 {[%clk 0:00:05]} 33. Re3 {[%clk 0:01:29]}  Rd6 {[%clk 0:00:03]} 34. Bb4 {[%clk 0:01:26]}  Re6 {[%clk 0:00:03]} 35. Qd5 {[%clk 0:01:25]}  Qb1+ {[%clk 0:00:01]} 36. Kg2 {[%clk 0:01:25]} 1-0


[Site "https://www.chess.com"]

[Event "Titled Tuesday Blitz May 10 Late 2022"]
[White "Kim, Sergey"]
[Black "Moussard, Jules"]
[WhiteFideId "13700570"]
[BlackFideId "642908"]
[WhiteElo "2474"]
[BlackElo "2589"]
[Result "0-1"]
[Round "01"]
[TimeControl "180+1"]
[Date "2022.05.11"]
[WhiteClock "0:00:45"]
[BlackClock "0:01:07"]

1. d4 {[%clk 0:03:00]}  d5 {[%clk 0:02:54]} 2. c4 {[%clk 0:03:00]}  e6 {[%clk 0:02:55]} 3. Nc3 {[%clk 0:03:00]}  a6 {[%clk 0:02:53]} 4. cxd5 {[%clk 0:02:58]}  exd5 {[%clk 0:02:53]} 5. Nf3 {[%clk 0:02:58]}  Nf6 {[%clk 0:02:54]} 6. Bg5 {[%clk 0:02:58]}  Be6 {[%clk 0:02:54]} 7. e3 {[%clk 0:02:58]}  Nbd7 {[%clk 0:02:54]} 8. Bd3 {[%clk 0:02:57]}  h6 {[%clk 0:02:55]} 9. Bh4 {[%clk 0:02:57]}  g5 {[%clk 0:02:55]} 10. Bg3 {[%clk 0:02:57]}  Nh5 {[%clk 0:02:56]} 11. Qb3 {[%clk 0:02:43]}  Nxg3 {[%clk 0:02:25]} 12. hxg3 {[%clk 0:02:42]}  Rb8 {[%clk 0:02:25]} 13. Rc1 {[%clk 0:02:17]}  c6 {[%clk 0:02:22]} 14. a3 {[%clk 0:02:12]}  Bg7 {[%clk 0:02:21]} 15. Na4 {[%clk 0:02:11]}  O-O {[%clk 0:02:20]} 16. Nc5 {[%clk 0:02:10]}  Nxc5 {[%clk 0:02:17]} 17. Rxc5 {[%clk 0:02:09]}  Qd6 {[%clk 0:02:17]} 18. Nxg5 {[%clk 0:01:57]}  Bxd4 {[%clk 0:01:56]} 19. exd4 {[%clk 0:01:54]}  hxg5 {[%clk 0:01:56]} 20. Qd1 {[%clk 0:01:46]}  Qe7 {[%clk 0:01:21]} 21. Kf1 {[%clk 0:01:43]}  Qf6 {[%clk 0:01:21]} 22. Qh5 {[%clk 0:01:33]}  Rfe8 {[%clk 0:01:21]} 23. Rc3 {[%clk 0:01:25]}  Kg7 {[%clk 0:01:16]} 24. Qh7+ {[%clk 0:01:22]}  Kf8 {[%clk 0:01:16]} 25. Rh6 {[%clk 0:00:47]}  Qxd4 {[%clk 0:01:08]} 26. Rxe6 {[%clk 0:00:45]}  Rxe6 {[%clk 0:01:07]} 0-1


[Site "https://www.chess.com"]

[Event "Titled Tuesday Blitz May 10 Late 2022"]
[White "Lazov, Toni"]
[Black "Keller, Peter"]
[WhiteFideId "15000770"]
[BlackFideId "1272105"]
[WhiteElo "2321"]
[BlackElo "2275"]
[Result "1-0"]
[Round "01"]
[TimeControl "180+1"]
[Date "2022.05.11"]
[WhiteClock "0:00:12"]
[BlackClock "0:00:15"]

1. e4 {[%clk 0:02:54]}  e5 {[%clk 0:03:00]} 2. Nf3 {[%clk 0:02:47]}  Nc6 {[%clk 0:03:00]} 3. Bc4 {[%clk 0:02:47]}  Nf6 {[%clk 0:02:58]} 4. d3 {[%clk 0:02:47]}  Bc5 {[%clk 0:02:57]} 5. c3 {[%clk 0:02:47]}  O-O {[%clk 0:02:56]} 6. Nbd2 {[%clk 0:02:47]}  d5 {[%clk 0:02:55]} 7. exd5 {[%clk 0:02:48]}  Nxd5 {[%clk 0:02:56]} 8. Ne4 {[%clk 0:02:49]}  Be7 {[%clk 0:02:51]} 9. O-O {[%clk 0:02:50]}  a6 {[%clk 0:02:46]} 10. Re1 {[%clk 0:02:41]}  Bg4 {[%clk 0:02:43]} 11. h3 {[%clk 0:02:38]}  Bh5 {[%clk 0:02:43]} 12. Ng3 {[%clk 0:02:38]}  Bg6 {[%clk 0:02:39]} 13. Nxe5 {[%clk 0:02:33]}  Nxe5 {[%clk 0:02:40]} 14. Rxe5 {[%clk 0:02:33]}  Nb6 {[%clk 0:02:39]} 15. Be3 {[%clk 0:02:17]}  Nxc4 {[%clk 0:02:35]} 16. dxc4 {[%clk 0:02:18]}  Bd6 {[%clk 0:02:31]} 17. Rg5 {[%clk 0:02:18]}  h6 {[%clk 0:02:03]} 18. Rg4 {[%clk 0:02:15]}  Qe7 {[%clk 0:02:03]} 19. Qf3 {[%clk 0:02:01]}  Bxg3 {[%clk 0:01:23]} 20. Rxg3 {[%clk 0:01:54]}  c6 {[%clk 0:01:22]} 21. b4 {[%clk 0:01:41]}  Qe6 {[%clk 0:01:17]} 22. h4 {[%clk 0:01:38]}  h5 {[%clk 0:01:08]} 23. c5 {[%clk 0:01:25]}  Rad8 {[%clk 0:01:07]} 24. Bd4 {[%clk 0:01:24]}  Rfe8 {[%clk 0:01:06]} 25. a4 {[%clk 0:01:20]}  Qe7 {[%clk 0:00:53]} 26. Qf4 {[%clk 0:01:10]}  Qe4 {[%clk 0:00:43]} 27. Qg5 {[%clk 0:00:46]}  Rd5 {[%clk 0:00:40]} 28. Qe3 {[%clk 0:00:46]}  Qxe3 {[%clk 0:00:34]} 29. Rxe3 {[%clk 0:00:47]}  Rxe3 {[%clk 0:00:34]} 30. fxe3 {[%clk 0:00:46]}  Be4 {[%clk 0:00:23]} 31. Rf1 {[%clk 0:00:42]}  f5 {[%clk 0:00:22]} 32. Rf2 {[%clk 0:00:42]}  Kf7 {[%clk 0:00:21]} 33. Kh2 {[%clk 0:00:42]}  g6 {[%clk 0:00:22]} 34. Kg3 {[%clk 0:00:42]}  Ke6 {[%clk 0:00:22]} 35. Kf4 {[%clk 0:00:43]}  Rd7 {[%clk 0:00:20]} 36. Rb2 {[%clk 0:00:42]}  Bd3 {[%clk 0:00:19]} 37. Kg5 {[%clk 0:00:37]}  Kf7 {[%clk 0:00:19]} 38. Rf2 {[%clk 0:00:37]}  Be4 {[%clk 0:00:18]} 39. Kh6 {[%clk 0:00:35]}  Rd8 {[%clk 0:00:17]} 40. Rb2 {[%clk 0:00:34]}  Bd3 {[%clk 0:00:17]} 41. Kg5 {[%clk 0:00:30]}  Rd7 {[%clk 0:00:18]} 42. Kf4 {[%clk 0:00:30]}  Ke6 {[%clk 0:00:17]} 43. Be5 {[%clk 0:00:30]}  Kf7 {[%clk 0:00:16]} 44. Bd6 {[%clk 0:00:30]}  Ke6 {[%clk 0:00:16]} 45. Rf2 {[%clk 0:00:29]}  Be4 {[%clk 0:00:16]} 46. c4 {[%clk 0:00:28]}  Bd3 {[%clk 0:00:16]} 47. Kg5 {[%clk 0:00:25]}  Kf7 {[%clk 0:00:15]} 48. Rf4 {[%clk 0:00:25]}  Rd8 {[%clk 0:00:15]} 49. Rd4 {[%clk 0:00:25]}  Be4 {[%clk 0:00:15]} 50. g3 {[%clk 0:00:25]}  Rd7 {[%clk 0:00:16]} 51. Kf4 {[%clk 0:00:25]}  Rd8 {[%clk 0:00:16]} 52. b5 {[%clk 0:00:26]}  axb5 {[%clk 0:00:16]} 53. cxb5 {[%clk 0:00:27]}  cxb5 {[%clk 0:00:17]} 54. axb5 {[%clk 0:00:27]}  Rc8 {[%clk 0:00:17]} 55. Ke5 {[%clk 0:00:23]}  Re8+ {[%clk 0:00:17]} 56. Kf4 {[%clk 0:00:24]}  Rc8 {[%clk 0:00:18]} 57. Ra4 {[%clk 0:00:23]}  Ke6 {[%clk 0:00:18]} 58. Ra7 {[%clk 0:00:23]}  Kd5 {[%clk 0:00:17]} 59. Kg5 {[%clk 0:00:22]}  Kc4 {[%clk 0:00:17]} 60. b6 {[%clk 0:00:16]}  Rg8 {[%clk 0:00:15]} 61. Ra4+ {[%clk 0:00:14]}  Kd3 {[%clk 0:00:16]} 62. Bf4 {[%clk 0:00:13]}  Ke2 {[%clk 0:00:16]} 63. Rd4 {[%clk 0:00:14]}  Kf3 {[%clk 0:00:16]} 64. Rd6 {[%clk 0:00:14]}  Rc8 {[%clk 0:00:16]} 65. Rxg6 {[%clk 0:00:14]}  Rh8 {[%clk 0:00:14]} 66. Rg7 {[%clk 0:00:14]}  Bc6 {[%clk 0:00:14]} 67. Kxf5 {[%clk 0:00:13]}  Be4+ {[%clk 0:00:14]} 68. Ke5 {[%clk 0:00:13]}  Bc6 {[%clk 0:00:15]} 69. Kd6 {[%clk 0:00:14]}  Be4 {[%clk 0:00:15]} 70. Re7 {[%clk 0:00:11]}  Bc6 {[%clk 0:00:15]} 71. Kc7 {[%clk 0:00:12]}  Rg8 {[%clk 0:00:14]} 72. Re6 {[%clk 0:00:12]}  Rg7+ {[%clk 0:00:13]} 73. Kb8 {[%clk 0:00:12]}  Bd5 {[%clk 0:00:13]} 74. Re5 {[%clk 0:00:11]}  Bc6 {[%clk 0:00:14]} 75. Rxh5 {[%clk 0:00:12]}  Rd7 {[%clk 0:00:13]} 76. Re5 {[%clk 0:00:10]}  Rd8+ {[%clk 0:00:13]} 77. Ka7 {[%clk 0:00:11]}  Rd3 {[%clk 0:00:13]} 78. Re6 {[%clk 0:00:10]}  Ra3+ {[%clk 0:00:13]} 79. Kb8 {[%clk 0:00:11]}  Rd3 {[%clk 0:00:14]} 80. Rxc6 {[%clk 0:00:11]}  bxc6 {[%clk 0:00:14]} 81. b7 {[%clk 0:00:12]}  Rb3 {[%clk 0:00:15]} 82. Kc7 {[%clk 0:00:12]}  Rxb7+ {[%clk 0:00:15]} 83. Kxb7 {[%clk 0:00:12]} 1-0


[Site "https://www.chess.com"]